bitfinex/quotes_BTCUSD_20251104
["timestamp","ask_amount","ask_price","bid_price","bid_amount"]
[1762247497811,0.00078675,104030.0,104020.0,0.06126075]
[1762247498423,0.00378675,104030.0,104020.0,0.06126075]
[1762247498838,0.19603898,104030.0,104020.0,0.06126075]
[1762247499857,0.00378675,104030.0,104020.0,0.12116074]
[1762247500054,0.19603898,104030.0,104020.0,0.12116074]
[1762247500216,0.00378675,104030.0,104020.0,0.12116074]
[1762247500495,0.00578675,104030.0,104020.0,0.12116074]
[1762247500865,0.93195713,104030.0,104020.0,0.03958074]
[1762247501312,0.93295713,104030.0,104020.0,0.03958074]
[1762247501961,1.27295713,104030.0,104020.0,0.00958077]
[1762247502224,0.1922892,104010.0,104000.0,0.02255564]
[1762247502436,0.92820735,104010.0,104000.0,0.04255562]
[1762247502647,0.92820735,104010.0,104000.0,0.02255564]
[1762247502861,0.92820735,104010.0,104000.0,0.01255565]
[1762247503077,0.92820735,104010.0,104000.0,0.00297488]
[1762247503301,1.26820735,104010.0,104000.0,0.00297488]
[1762247503974,1.26920735,104010.0,104000.0,0.00297488]
[1762247504437,1.26820735,104010.0,104000.0,0.00297488]
[1762247504647,1.27020735,104010.0,104000.0,0.00297488]
[1762247505079,0.5342892,104010.0,104000.0,0.00297488]
[1762247505421,0.1942892,104010.0,104000.0,0.02297486]
[1762247505632,0.1942892,104010.0,104000.0,0.03297485]
[1762247505840,0.002,104010.0,104000.0,0.03297485]
[1762247506090,0.004,104010.0,104000.0,0.06491485]
[1762247506329,0.1962892,104010.0,104000.0,0.06491485]
[1762247506859,0.004,104010.0,104000.0,0.06491485]
[1762247507501,0.52226838,104010.0,104000.0,0.06491485]
[1762247508546,0.71455758,104010.0,104000.0,0.06491485]
[1762247509183,0.52226838,104010.0,104000.0,0.06491485]
[1762247509603,0.71455758,104010.0,104000.0,0.06491485]
[1762247510911,0.52226838,104010.0,104000.0,0.06491485]
[1762247511344,0.71455758,104010.0,104000.0,0.03297485]
[1762247511551,0.71455758,104010.0,104000.0,0.00297488]
[1762247511815,1.0724233,104010.0,104000.0,0.00297488]
[1762247512909,1.10131021,104010.0,104000.0,0.00297488]
[1762247520395,0.76131021,104010.0,104000.0,0.03491488]
[1762247520609,0.76131021,104010.0,104000.0,0.02297486]
[1762247520811,0.7324233,104010.0,104000.0,0.02297486]
[1762247521939,0.7324233,104010.0,104000.0,0.00297488]
[1762247522143,0.7324233,104010.0,104000.0,0.02297486]
[1762247524890,0.004,104010.0,104000.0,0.06491485]
[1762247525092,0.004,104010.0,104000.0,0.11684485]
[1762247525541,0.004,104010.0,104000.0,0.31873331]
[1762247526409,0.002,104010.0,104000.0,0.31873331]
[1762247526589,0.71130736,104030.0,104000.0,0.31873331]
[1762247526817,0.72919671,104030.0,104020.0,0.01999998]
[1762247527052,0.72919671,104030.0,104020.0,0.02958075]
[1762247527433,0.72919671,104030.0,104020.0,0.00958077]
[1762247527674,0.72919671,104030.0,104020.0,0.02958075]
[1762247528087,0.73219671,104030.0,104020.0,0.00958077]
[1762247528298,0.73219671,104030.0,104020.0,0.02958075]
[1762247528506,0.73619671,104030.0,104020.0,0.02958075]
[1762247528719,0.73619671,104030.0,104020.0,0.07152074]
[1762247528938,0.0216761,104030.0,104020.0,0.12345074]
[1762247529151,0.21392833,104030.0,104020.0,0.03958074]
[1762247529366,0.73619671,104030.0,104020.0,0.03958074]
[1762247529778,0.72919671,104030.0,104020.0,0.01958076]
[1762247530231,0.73119671,104030.0,104020.0,0.07152074]
[1762247530701,0.73119671,104030.0,104020.0,0.14267781]
[1762247530702,0.0206761,104030.0,104020.0,0.14267781]
[1762247531068,0.19503898,104030.0,104020.0,0.14267781]
[1762247531351,0.19703898,104030.0,104020.0,0.14267781]
[1762247531563,0.19703898,104030.0,104020.0,0.12345074]
[1762247532209,0.71530736,104030.0,104020.0,0.07152074]
[1762247532843,0.71530736,104030.0,104020.0,0.12345074]
[1762247533495,0.53227071,104020.0,104000.0,0.02255564]
[1762247533716,1.14603665,104010.0,104000.0,0.04255562]
[1762247534133,1.17492267,104010.0,104000.0,0.03255563]
[1762247534828,1.17492267,104010.0,104000.0,0.02397486]
[1762247535045,1.16605457,104010.0,104000.0,0.02397486]
[1762247535266,1.16605457,104010.0,104000.0,0.02297486]
[1762247535703,1.16605457,104010.0,104000.0,0.02397486]
[1762247539311,1.16605457,104010.0,104000.0,0.00397488]
[1762247539544,1.16605457,104010.0,104000.0,0.02397486]
[1762247542671,1.16605457,104010.0,104000.0,0.00397488]
[1762247542910,1.16605457,104010.0,104000.0,0.02397486]
[1762247545364,0.3311319,104010.0,104000.0,0.12356562]
[1762247545599,0.5611545,104020.0,104010.0,0.01999998]
[1762247545816,1.07942288,104020.0,104000.0,0.14279638]
[1762247546037,1.19278602,104020.0,104010.0,0.01999998]
[1762247546264,0.2922892,104010.0,104000.0,0.09796562]
[1762247546517,0.81055758,104010.0,104000.0,0.04355562]
[1762247546742,1.15055758,104010.0,104000.0,0.03255563]
[1762247546964,1.15055758,104010.0,104000.0,0.02297486]
[1762247547171,1.16844096,104010.0,104000.0,0.00297488]
[1762247547857,1.16844096,104010.0,104000.0,0.00397488]
[1762247548302,1.16844096,104010.0,104000.0,0.00297488]
[1762247548579,1.16944096,104010.0,104000.0,0.00297488]
[1762247549160,0.65117258,104010.0,104000.0,0.00297488]
[1762247549360,1.17044096,104010.0,104000.0,0.00297488]
[1762247550379,0.65217258,104010.0,104000.0,0.00297488]
[1762247550579,1.17044096,104010.0,104000.0,0.00297488]
[1762247551173,1.27044096,104010.0,104000.0,0.00297488]
[1762247551865,0.19234468,103980.0,103970.0,0.00999999]
[1762247552058,0.71061306,103980.0,103970.0,0.02999997]
[1762247552682,0.71061306,103980.0,103970.0,0.00999999]
[1762247553087,0.71161306,103980.0,103970.0,0.00648708]
[1762247553694,1.05161306,103980.0,103970.0,0.00648708]
[1762247555528,0.53334468,103980.0,103970.0,0.02648706]
[1762247555763,1.08050876,103980.0,103970.0,0.00648708]
[1762247555982,1.08050876,103980.0,103970.0,0.02648706]
[1762247556399,1.08050876,103980.0,103970.0,0.00648708]
[1762247556654,1.08050876,103980.0,103970.0,0.02648706]
[1762247557530,1.08050876,103980.0,103970.0,0.02720975]
[1762247558536,1.08050876,103980.0,103970.0,0.08895974]
[1762247558730,1.05061306,103980.0,103970.0,0.08495974]
[1762247558936,0.56123841,103980.0,103970.0,0.08295974]
[1762247559358,1.07950679,103980.0,103970.0,0.08495974]
[1762247559557,1.07950679,103980.0,103970.0,0.08595974]
[1762247559771,1.07950679,103980.0,103970.0,0.05531974]
[1762247560109,1.07950679,103980.0,103970.0,0.01420976]
[1762247560321,1.07950679,103980.0,103970.0,0.00420977]
[1762247560530,1.07950679,103980.0,103970.0,0.00320977]
[1762247560717,1.07950679,103980.0,103970.0,0.02420975]
[1762247561096,1.17950679,103980.0,103970.0,0.02420975]
[1762247564401,1.17950679,103980.0,103970.0,0.05731974]
[1762247565540,1.17950679,103980.0,103970.0,0.00420977]
[1762247566838,1.17950679,103980.0,103970.0,0.02420975]
[1762247567034,1.19736531,103980.0,103970.0,0.00420977]
[1762247567505,1.19736531,103980.0,103970.0,0.00404977]
[1762247568589,1.19780165,103980.0,103970.0,0.00404977]
[1762247568801,1.41457521,103980.0,103970.0,0.02404975]
[1762247568979,1.41457521,103980.0,103970.0,0.00404977]
[1762247570472,1.41456588,103980.0,103970.0,0.00404977]
[1762247571573,1.99453285,103980.0,103970.0,0.00404977]
[1762247571781,2.03071513,103980.0,103970.0,0.00404977]
[1762247572003,2.03071513,103980.0,103970.0,1e-08]
[1762247572412,2.0308951,103980.0,103970.0,1e-08]
[1762247572615,0.53240019,103950.0,103940.0,0.00958077]
[1762247572828,0.97093882,103950.0,103940.0,0.00972692]
[1762247573237,0.99984296,103950.0,103940.0,0.00972692]
[1762247573468,0.99984296,103950.0,103940.0,0.0297269]
[1762247573672,0.99984296,103950.0,103940.0,0.00972692]
[1762247574301,0.99984296,103950.0,103940.0,0.0297269]
[1762247574302,1.00968586,103950.0,103940.0,0.0297269]
[1762247574514,1.00968586,103950.0,103940.0,0.00972692]
[1762247574715,1.30703915,103950.0,103940.0,0.00972692]
[1762247575144,0.19245573,103920.0,103910.0,0.03019997]
[1762247575361,0.92834765,103920.0,103910.0,0.03034612]
[1762247575576,0.19245573,103920.0,103910.0,0.03034612]
[1762247575832,0.19245573,103920.0,103910.0,0.05404612]
[1762247576037,0.22136502,103920.0,103910.0,0.05404612]
[1762247576269,0.65684409,103920.0,103910.0,0.03034612]
[1762247576484,1.39273601,103920.0,103910.0,0.00034615]
[1762247578186,1.49373601,103920.0,103910.0,0.00234615]
[1762247578365,1.49373601,103920.0,103910.0,0.00334615]
[1762247580538,0.66236502,103920.0,103910.0,0.00334615]
[1762247581186,0.62911758,103920.0,103910.0,0.00334615]
[1762247581406,1.39392155,103920.0,103910.0,0.01292692]
[1762247582059,1.39392155,103920.0,103910.0,0.00334615]
[1762247582060,1.43010383,103920.0,103910.0,0.00334615]
[1762247582311,0.69421191,103920.0,103910.0,0.00334615]
[1762247582519,1.39392155,103920.0,103910.0,0.00334615]
[1762247583511,1.39392155,103920.0,103910.0,0.00479258]
[1762247585367,1.43010383,103920.0,103910.0,0.00479258]
[1762247586345,1.43010383,103920.0,103910.0,1e-08]
[1762247586546,1.42910383,103920.0,103910.0,1e-08]
[1762247586856,1.43010383,103920.0,103910.0,1e-08]
[1762247587011,0.69521191,103920.0,103910.0,1e-08]
[1762247587418,0.59521191,103920.0,103910.0,1e-08]
[1762247587611,0.69069098,103920.0,103910.0,1e-08]
[1762247592830,0.70845239,103920.0,103910.0,1e-08]
[1762247595255,0.53249278,103900.0,103890.0,0.02069998]
[1762247595470,0.55040007,103900.0,103890.0,0.02069998]
[1762247595682,0.55040007,103900.0,103890.0,0.02118235]
[1762247595885,1.3152107,103900.0,103890.0,0.00118237]
[1762247596060,1.3152107,103900.0,103890.0,0.02118235]
[1762247596549,0.58031878,103900.0,103890.0,0.08519234]
[1762247596774,0.19251131,103890.0,103860.0,0.0002]
[1762247597006,0.19260264,103850.0,103810.0,0.49515905]
[1762247597222,0.93812383,103850.0,103820.0,0.1536216]
[1762247597435,0.19260449,103840.0,103820.0,0.10190664]
[1762247597679,0.76482144,103850.0,103820.0,0.29454746]
[1762247597875,0.36892952,103850.0,103820.0,0.29454746]
[1762247598103,0.92849594,103840.0,103820.0,0.01129]
[1762247598319,0.73589192,103840.0,103810.0,0.56585654]
[1762247598751,0.92849739,103840.0,103810.0,0.36657008]
[1762247598979,0.73589192,103840.0,103810.0,0.53438344]
[1762247599198,0.73589192,103830.0,103810.0,0.27129642]
[1762247599441,0.83137099,103830.0,103820.0,0.1946411]
[1762247599646,0.09547907,103830.0,103820.0,0.002]
[1762247599910,0.10535816,103840.0,103810.0,0.46395455]
[1762247600110,0.74577101,103840.0,103820.0,0.1926395]
[1762247600317,1.17137099,103830.0,103810.0,0.26266344]
[1762247600527,0.43547907,103830.0,103810.0,0.26266344]
[1762247600737,1.17137099,103830.0,103810.0,0.26266344]
[1762247600951,1.17137099,103830.0,103810.0,0.45432231]
[1762247601183,0.43547907,103830.0,103820.0,0.001]
[1762247601386,1.36399354,103830.0,103820.0,0.001]
[1762247601589,1.40017582,103830.0,103820.0,0.001]
[1762247602158,1.36399354,103830.0,103820.0,0.001]
[1762247602369,0.62810162,103830.0,103810.0,0.26166344]
[1762247602583,1.36399354,103830.0,103810.0,0.26166344]
[1762247602817,0.43747907,103830.0,103810.0,0.26266344]
[1762247603036,1.17337099,103830.0,103810.0,0.26266344]
[1762247603245,0.43747907,103830.0,103810.0,0.26266344]
[1762247603451,0.63010192,103830.0,103810.0,0.45531983]
[1762247603654,0.43747907,103830.0,103810.0,0.45531983]
[1762247603892,0.63010375,103830.0,103810.0,0.26266344]
[1762247604310,0.63010375,103830.0,103810.0,0.45532303]
[1762247604513,0.43747907,103830.0,103810.0,0.45532303]
[1762247604718,0.63010817,103830.0,103810.0,0.26266344]
[1762247604854,0.63010817,103830.0,103810.0,0.45531874]
[1762247605057,0.34,103820.0,103810.0,0.26266344]
[1762247605261,0.34,103820.0,103810.0,0.4553231]
[1762247605464,0.44,103820.0,103810.0,0.33852344]
[1762247605685,0.44,103820.0,103810.0,0.5311831]
[1762247606291,0.44,103820.0,103810.0,0.5301831]
[1762247606718,0.441,103820.0,103810.0,0.5341831]
[1762247606934,0.101,103820.0,103810.0,0.62966217]
[1762247607663,0.101,103820.0,103810.0,0.63166217]
[1762247607864,0.101,103820.0,103810.0,0.34152344]
[1762247608072,0.101,103820.0,103810.0,0.5341831]
[1762247608281,0.102,103820.0,103810.0,0.5391831]
[1762247608456,0.101,103820.0,103810.0,0.53711428]
[1762247608855,0.102,103820.0,103810.0,0.54511428]
[1762247610353,0.102,103820.0,103810.0,1.31718848]
[1762247610801,0.102,103820.0,103810.0,1.21718848]
[1762247613437,0.102,103820.0,103810.0,0.48129656]
[1762247614131,0.102,103820.0,103810.0,1.21718848]
[1762247614954,0.102,103820.0,103810.0,1.2445672]
[1762247615186,0.102,103820.0,103810.0,1.21718848]
[1762247616650,1e-08,103820.0,103810.0,1.70458848]
[1762247616854,0.00014578,103850.0,103840.0,0.192604]
[1762247617063,0.00014578,103850.0,103840.0,0.242784]
[1762247617272,0.00014578,103850.0,103840.0,0.284584]
[1762247617911,0.00114578,103850.0,103840.0,0.286584]
[1762247618531,0.00114578,103850.0,103840.0,0.288584]
[1762247618729,0.00114578,103850.0,103840.0,1.0666582]
[1762247618956,0.00214578,103850.0,103840.0,1.0666582]
[1762247619708,0.00214578,103850.0,103840.0,0.33076628]
[1762247620101,0.00214578,103850.0,103840.0,1.0666582]
[1762247620315,0.00214578,103850.0,103840.0,0.33076628]
[1762247620723,0.00214578,103850.0,103840.0,1.0666582]
[1762247620929,0.00214578,103850.0,103840.0,1.16123426]
[1762247621970,0.00114578,103850.0,103840.0,0.288584]
[1762247622429,0.00114578,103850.0,103840.0,0.22597292]
[1762247622605,0.00214578,103850.0,103840.0,0.22997292]
[1762247622826,0.00114578,103850.0,103840.0,0.22997292]
[1762247623032,0.00214578,103850.0,103840.0,0.23497292]
[1762247624439,0.00214578,103850.0,103840.0,0.31136899]
[1762247625647,0.00214578,103850.0,103840.0,0.23497292]
[1762247626483,0.00214578,103850.0,103840.0,1.11826484]
[1762247628400,0.00214578,103850.0,103840.0,1.11891445]
[1762247628782,0.00214578,103850.0,103840.0,1.1185085]
[1762247629220,0.00214578,103850.0,103840.0,1.15311219]
[1762247629418,0.00214578,103850.0,103840.0,1.03059502]
[1762247630469,0.00214578,103850.0,103840.0,0.88319502]
[1762247631681,0.00214578,103850.0,103840.0,0.36374672]
[1762247631924,0.00214578,103850.0,103840.0,0.78861896]
[1762247632550,0.00214578,103850.0,103840.0,0.84033392]
[1762247632676,0.52159408,103850.0,103840.0,0.07115033]
[1762247632920,0.00214578,103850.0,103840.0,0.30152064]
[1762247633534,0.00114578,103850.0,103840.0,0.29352064]
[1762247633743,0.00014578,103850.0,103840.0,0.28852064]
[1762247633950,0.00114578,103850.0,103840.0,0.29252064]
[1762247634168,0.00114578,103850.0,103840.0,0.29352064]
[1762247634378,0.00014578,103850.0,103840.0,0.28952064]
[1762247634810,0.00014578,103850.0,103840.0,0.29152064]
[1762247635238,0.00014578,103850.0,103840.0,0.09891664]
[1762247635414,0.19273123,103850.0,103840.0,0.09891664]
[1762247635828,0.00014578,103850.0,103840.0,0.29152064]
[1762247636019,0.00014578,103850.0,103840.0,0.09891664]
[1762247636380,0.00014578,103850.0,103840.0,0.29152064]
[1762247637083,0.19273123,103850.0,103840.0,0.09891664]
[1762247637289,0.00014578,103850.0,103840.0,0.29152064]
[1762247637470,0.19273123,103850.0,103840.0,0.09891664]
[1762247637636,0.00014578,103850.0,103840.0,0.09891664]
[1762247637841,0.00014578,103850.0,103840.0,0.29152064]
[1762247642401,0.00014578,103850.0,103840.0,0.84715122]
[1762247643507,0.00014578,103850.0,103840.0,0.84415122]
[1762247643720,0.00114578,103850.0,103840.0,1.19815121]
[1762247643940,0.00114578,103850.0,103840.0,1.20992339]
[1762247645022,0.00014578,103850.0,103840.0,1.20392339]
[1762247645224,0.00014578,103850.0,103840.0,1.22429329]
[1762247645464,0.00114578,103850.0,103840.0,0.67370292]
[1762247645870,0.00114578,103850.0,103840.0,0.29752064]
[1762247646642,0.00114578,103850.0,103840.0,0.10491664]
[1762247646840,0.71317953,103850.0,103840.0,0.01020664]
[1762247647040,0.19373123,103850.0,103840.0,0.03770664]
[1762247647302,0.00114578,103850.0,103840.0,0.03770664]
[1762247647481,0.00114578,103850.0,103840.0,0.27518064]
[1762247648027,0.00014578,103850.0,103840.0,0.26618064]
[1762247648246,0.00014578,103850.0,103840.0,0.07357664]
[1762247648446,0.00114578,103850.0,103840.0,0.27218064]
[1762247648668,0.00114578,103850.0,103840.0,0.27018064]
[1762247648885,0.10014578,103850.0,103840.0,0.26618064]
[1762247649092,0.10014578,103850.0,103840.0,0.26718064]
[1762247649307,0.10014578,103850.0,103840.0,0.26918064]
[1762247649937,0.29273123,103850.0,103840.0,0.07657664]
[1762247650133,0.29273123,103850.0,103840.0,0.03170664]
[1762247650362,0.10014578,103850.0,103840.0,0.22431064]
[1762247650582,0.29273123,103850.0,103840.0,0.00420664]
[1762247651014,0.29273123,103850.0,103840.0,0.03170664]
[1762247651201,0.10014578,103850.0,103840.0,0.07657664]
[1762247651402,0.29273123,103850.0,103840.0,0.00420664]
[1762247651600,0.29273123,103850.0,103840.0,0.02970664]
[1762247651851,0.10014578,103850.0,103840.0,0.26618064]
[1762247652042,0.10114578,103850.0,103840.0,0.26618064]
[1762247652264,0.10114578,103850.0,103840.0,0.22131064]
[1762247653006,0.10114578,103850.0,103840.0,0.26618064]
[1762247653193,0.10114578,103850.0,103840.0,0.78562894]
[1762247653450,0.10114578,103850.0,103840.0,0.26618064]
[1762247653676,0.20114578,103850.0,103840.0,0.26618064]
[1762247653896,0.20114578,103850.0,103840.0,0.78562894]
[1762247654138,0.20014578,103850.0,103840.0,0.78562894]
[1762247654395,0.20014578,103850.0,103840.0,0.26618064]
[1762247654643,0.20014578,103850.0,103840.0,0.78762894]
[1762247655153,0.20014578,103850.0,103840.0,0.78862894]
[1762247655391,0.20014578,103850.0,103840.0,0.26918064]
[1762247657415,0.20014578,103850.0,103840.0,0.82481122]
[1762247658049,0.20014578,103850.0,103840.0,0.91938728]
[1762247658576,0.20014578,103850.0,103840.0,1.29400816]
[1762247658820,0.30014578,103850.0,103840.0,1.29400816]
[1762247659041,0.30014578,103850.0,103840.0,1.29200816]
[1762247659258,0.30014578,103850.0,103840.0,1.29100816]
[1762247659487,0.36892111,103890.0,103880.0,0.19252984]
[1762247659717,0.34014615,103890.0,103880.0,0.24141984]
[1762247659941,0.34014615,103890.0,103880.0,0.28636984]
[1762247661055,0.34014615,103890.0,103880.0,0.2804657]
[1762247661266,0.34114615,103890.0,103880.0,0.2804657]
[1762247661487,0.34314615,103890.0,103880.0,0.2804657]
[1762247661950,0.53565746,103890.0,103880.0,0.2804657]
[1762247662144,0.34314615,103890.0,103880.0,0.28636984]
[1762247662586,0.00314615,103890.0,103880.0,0.33426002]
[1762247662805,0.00314615,103890.0,103880.0,0.85370832]
[1762247663018,0.00314615,103890.0,103880.0,0.8898906]
[1762247663737,0.00114615,103890.0,103880.0,0.8898906]
[1762247663974,0.00014615,103890.0,103880.0,0.8928906]
[1762247664204,0.00014615,103890.0,103880.0,0.8948906]
[1762247664915,0.00014615,103890.0,103880.0,0.89513184]
[1762247665126,0.10014615,103890.0,103880.0,0.89513184]
[1762247666502,0.10014615,103890.0,103880.0,1.23513184]
[1762247667511,0.10014615,103890.0,103880.0,0.71568354]
[1762247671287,0.34,103930.0,103920.0,0.19245573]
[1762247671485,0.53258334,103930.0,103920.0,0.23917573]
[1762247671688,0.34014613,103930.0,103920.0,0.28085573]
[1762247672022,0.53258334,103930.0,103920.0,0.28085573]
[1762247672835,0.53258334,103930.0,103920.0,0.0884]
[1762247672971,0.53858334,103930.0,103920.0,0.28185573]
[1762247673620,0.53858334,103930.0,103920.0,0.0894]
[1762247673781,0.54158334,103930.0,103920.0,0.0894]
[1762247674440,1.06103164,103930.0,103920.0,0.0894]
[1762247674640,0.54158334,103930.0,103920.0,0.0894]
[1762247674883,1.06103164,103930.0,103920.0,0.0894]
[1762247675847,0.54158334,103930.0,103920.0,0.28185573]
[1762247676661,0.54158334,103930.0,103920.0,0.0894]
[1762247680306,0.20158334,103930.0,103920.0,0.0894]
[1762247682551,0.72103164,103930.0,103920.0,0.02104]
[1762247682987,0.74993831,103930.0,103920.0,0.001]
[1762247684360,0.23049001,103930.0,103920.0,0.04772]
[1762247684561,0.74993831,103930.0,103920.0,0.04772]
[1762247685424,0.74993831,103930.0,103920.0,0.02104]
[1762247685631,0.74993831,103930.0,103920.0,0.001]
[1762247687506,1.08993831,103930.0,103920.0,0.001]
[1762247689320,0.74993831,103930.0,103920.0,0.00015]
[1762247689531,0.19246619,103920.0,103900.0,0.24524385]
[1762247689742,0.80739356,103920.0,103900.0,0.21165281]
[1762247689999,0.74993831,103930.0,103910.0,0.23170167]
[1762247690210,0.74993831,103930.0,103910.0,0.21245425]
[1762247690426,0.74655896,103930.0,103910.0,0.21245425]
[1762247690635,0.74055896,103930.0,103910.0,0.19247425]
[1762247690848,0.006,103920.0,103910.0,0.19247425]
[1762247691052,0.004,103920.0,103910.0,0.21245425]
[1762247691262,0.004,103920.0,103910.0,0.23956425]
[1762247691473,0.0320528,103930.0,103920.0,0.19245573]
[1762247691695,0.00014613,103930.0,103920.0,0.19245573]
[1762247691898,0.19958334,103930.0,103920.0,0.16733573]
[1762247692111,0.00714613,103930.0,103920.0,0.21243573]
[1762247692488,0.00014613,103930.0,103920.0,0.23954573]
[1762247693111,0.00014613,103930.0,103920.0,0.21243573]
[1762247693761,0.00714613,103930.0,103920.0,0.24054573]
[1762247693975,0.01014613,103930.0,103920.0,0.32701273]
[1762247694200,0.01014613,103930.0,103920.0,0.28052573]
[1762247699358,0.20258334,103930.0,103920.0,0.28052573]
[1762247699507,0.01014613,103930.0,103920.0,0.28052573]
[1762247701371,1.27845517,103930.0,103920.0,0.001]
[1762247701815,0.01014613,103930.0,103920.0,0.2997713]
[1762247702041,0.01014613,103930.0,103920.0,0.28052573]
[1762247702520,0.01014613,103930.0,103920.0,0.31670801]
[1762247702744,0.01014613,103930.0,103920.0,0.28052573]
[1762247704691,0.01014613,103930.0,103920.0,1.01639756]
[1762247704906,0.00160989,103940.0,103930.0,0.22861949]
[1762247705137,0.00160989,103940.0,103920.0,0.21343279]
[1762247705353,0.19403217,103940.0,103930.0,0.04709]
[1762247705586,0.19243721,103930.0,103920.0,0.06096]
[1762247705836,0.53403217,103940.0,103920.0,0.06096]
[1762247706047,0.19243721,103930.0,103920.0,0.08707]
[1762247706278,0.19243721,103930.0,103910.0,0.05996]
[1762247706491,0.19245573,103920.0,103910.0,0.02012613]
[1762247706708,1.26832756,103920.0,103910.0,0.00014613]
[1762247708402,0.53245573,103920.0,103910.0,0.00014613]
[1762247708603,1.27532756,103920.0,103910.0,0.00114613]
[1762247709254,1.27032756,103920.0,103910.0,0.00014613]
[1762247709465,1.26832756,103920.0,103910.0,0.00014613]
[1762247709684,0.34,103910.0,103880.0,0.00024124]
[1762247709893,0.62799038,103890.0,103880.0,0.00024124]
[1762247710338,1.36386221,103890.0,103880.0,0.00024124]
[1762247710562,1.39278192,103890.0,103880.0,0.00024124]
[1762247710767,0.65691009,103890.0,103880.0,0.00024124]
[1762247710988,1.39278192,103890.0,103880.0,0.00024124]
[1762247711194,1.39778192,103890.0,103880.0,0.00024124]
[1762247712819,1.39978192,103890.0,103880.0,0.00024124]
[1762247714134,0.66391009,103890.0,103880.0,0.00024124]
[1762247715215,1.39978192,103890.0,103880.0,0.00024124]
[1762247715859,0.66391009,103890.0,103880.0,0.00024124]
[1762247716081,0.56843102,103890.0,103880.0,0.00024124]
[1762247716287,0.37591971,103890.0,103880.0,0.26240108]
[1762247716493,0.007,103890.0,103880.0,0.26240108]
[1762247717352,0.002,103890.0,103880.0,0.26240108]
[1762247717971,0.19451131,103890.0,103880.0,0.06987124]
[1762247718188,0.19451131,103890.0,103880.0,0.26240108]
[1762247718189,0.005,103890.0,103880.0,0.26240108]
[1762247718982,0.003,103890.0,103880.0,0.26240108]
[1762247719438,0.004,103890.0,103880.0,0.26240108]
[1762247719651,0.29199038,103890.0,103880.0,0.02676124]
[1762247719867,0.19651131,103890.0,103880.0,0.06987124]
[1762247720075,0.53651131,103890.0,103880.0,0.06987124]
[1762247720448,0.344,103890.0,103880.0,0.26240108]
[1762247721477,0.004,103890.0,103880.0,0.26240108]
[1762247725463,4.867e-05,103910.0,103900.0,0.19249278]
[1762247725665,4.867e-05,103910.0,103900.0,0.26212278]
[1762247727258,0.00104867,103910.0,103900.0,0.26212278]
[1762247735477,0.00160989,103940.0,103930.0,0.19243721]
[1762247735724,0.00160989,103940.0,103930.0,0.23875721]
[1762247735933,0.00160989,103940.0,103930.0,0.27621721]
[1762247737201,0.00160989,103940.0,103930.0,0.27721721]
[1762247738149,0.00160989,103940.0,103930.0,0.23975721]
[1762247738617,0.00160989,103940.0,103930.0,0.27721721]
[1762247739699,0.00160989,103940.0,103930.0,0.3241829]
[1762247739922,0.0004,103960.0,103950.0,0.19240019]
[1762247740145,0.00054614,103960.0,103950.0,0.37165926]
[1762247740583,0.0010281,103960.0,103950.0,0.23872019]
[1762247740770,0.0010281,103960.0,103950.0,0.27618019]
[1762247741238,0.0050281,103960.0,103950.0,0.27618019]
[1762247741460,0.19740978,103960.0,103950.0,0.23872019]
[1762247741904,1.02876068,103960.0,103950.0,0.21198019]
[1762247742118,1.02876068,103960.0,103950.0,0.01958]
[1762247742345,1.02876068,103960.0,103950.0,0.23872019]
[1762247742558,1.02876068,103960.0,103950.0,0.04632]
[1762247743010,1.03076068,103960.0,103950.0,0.04632]
[1762247743230,0.0070281,103960.0,103950.0,0.23872019]
[1762247743900,0.0070281,103960.0,103950.0,0.27618019]
[1762247748124,0.19940978,103960.0,103950.0,0.23872019]
[1762247749113,0.0070281,103960.0,103950.0,0.23872019]
[1762247749344,0.0070281,103960.0,103950.0,0.27905019]
[1762247750359,0.19940978,103960.0,103950.0,0.27905019]
[1762247751301,0.19940978,103960.0,103950.0,0.04632]
[1762247751302,0.71813129,103960.0,103950.0,0.04632]
[1762247751511,0.81361036,103960.0,103950.0,0.21198019]
[1762247751949,0.81361036,103960.0,103950.0,0.01958]
[1762247752362,0.53240019,103950.0,103940.0,0.2327487]
[1762247752565,0.85872151,103950.0,103940.0,0.2327487]
[1762247752768,0.53240019,103950.0,103940.0,0.2590987]
[1762247753543,0.53340019,103950.0,103940.0,0.2590987]
[1762247753750,0.341,103950.0,103940.0,0.2590987]
[1762247754762,0.53340019,103950.0,103940.0,0.06668]
[1762247754981,0.341,103950.0,103940.0,0.2590987]
[1762247755626,0.53340019,103950.0,103940.0,0.2590987]
[1762247755849,0.341,103950.0,103940.0,0.2590987]
[1762247757911,0.34124101,103950.0,103940.0,0.2590987]
[1762247758145,0.5336412,103950.0,103940.0,0.2590987]
[1762247758350,0.1936412,103950.0,103940.0,0.2590987]
[1762247758767,0.00124101,103950.0,103940.0,0.2590987]
[1762247762867,0.00124101,103950.0,103940.0,0.2784787]
[1762247766248,0.1936412,103950.0,103940.0,0.2784787]
[1762247766466,0.00124101,103950.0,103940.0,0.2784787]
[1762247766882,0.1936412,103950.0,103940.0,0.2784787]
[1762247767091,0.00124101,103950.0,103940.0,0.2784787]
[1762247768138,0.00124101,103950.0,103940.0,0.79720021]
[1762247768341,0.00124101,103950.0,103940.0,0.89177627]
[1762247768602,0.00124101,103950.0,103940.0,0.92625953]
[1762247769298,0.00124101,103950.0,103940.0,0.40753802]
[1762247769541,0.00124101,103950.0,103940.0,0.96244181]
[1762247769749,1e-08,103950.0,103940.0,1.3542633]
[1762247770204,0.00054614,103960.0,103950.0,0.22858247]
[1762247770487,0.00054614,103960.0,103950.0,0.42445226]
[1762247770722,0.00054614,103960.0,103950.0,1.28317377]
[1762247771637,0.0004,104000.0,103990.0,0.19232618]
[1762247771844,0.00054609,104000.0,103990.0,0.23805618]
[1762247772071,0.19285378,104000.0,103990.0,0.27838618]
[1762247772510,0.00054609,104000.0,103990.0,0.27838618]
[1762247773416,0.00054609,104000.0,103990.0,0.32545927]
[1762247773643,0.00054609,104000.0,103990.0,0.93965985]
[1762247773644,0.00354609,104000.0,103990.0,0.93965985]
[1762247774098,0.00354609,104000.0,103990.0,0.32545927]
[1762247774324,0.00554609,104000.0,103990.0,0.32545927]
[1762247775041,0.00054609,104000.0,103990.0,0.32545927]
[1762247775254,0.19285378,104000.0,103990.0,0.08606]
[1762247775685,0.00054609,104000.0,103990.0,0.27838618]
[1762247775899,0.19285378,104000.0,103990.0,0.08606]
[1762247776115,0.19405811,104000.0,103990.0,0.27838618]
[1762247776331,0.19505811,104000.0,103990.0,0.27838618]
[1762247776787,0.00275042,104000.0,103990.0,0.27838618]
[1762247777017,0.19505811,104000.0,103990.0,0.04573]
[1762247777230,0.19233607,103990.0,103970.0,0.19236172]
[1762247777644,0.19233607,103990.0,103980.0,0.04328]
[1762247777857,0.19233607,103990.0,103980.0,0.08275]
[1762247778292,0.19233607,103990.0,103980.0,0.27509468]
[1762247778540,0.19232618,103990.0,103980.0,0.27509468]